[Event "Turkish-ch Youth U16 2024"]
[Site "Belek Antalya"]
[Date "2024.01.25"]
[Round "7"]
[White "Erten, Kerem"]
[Black "Manas, Eren"]
[Result "1-0"]
[ECO "B31"]
[WhiteElo "2231"]
[BlackElo "1762"]
[Annotator "NA RC"]
[PlyCount "64"]
[EventDate "2024.01.21"]
[EventType "swiss"]
[EventCountry "TUR"]
[SourceTitle "playchess.com"]
[Source "ChessBase"]
[SourceQuality "1"]
[TimeControl "5400+30"]

1. e4 {[%emt 0:01:00]} c5 {[%emt 0:01:00]} 2. Nf3 {[%emt 0:00:30]} Nc6 {[%emt 0:00:00]} 3. Bb5 {[%emt 0:00:00]} g6 {[%emt 0:00:00]} 4. Bxc6 {[%emt 0:00:00]} dxc6 {[%emt 0:00:30]} 5. d3 {[%emt 0:00:00]} Bg7 {[%emt 0:00:30]} 6. h3 {[%emt 0:00:00]} Nf6 {[%emt 0:00:30]} 7. Nc3 {[%emt 0:00:30]} O-O {[%emt 0:00:30]} 8. Be3 {[%emt 0:00:30]} b6 {[%emt 0:00:30]} 9. Qd2 {[%emt 0:00:00]} Re8 {[%emt 0:00:30]} 10. O-O {[%emt 0:00:00]} e5 {[%emt 0:00:30]} 11. Bh6 {[%emt 0:00:00]} Nh5 {[%emt 0:03:30]} 12. Ne2 {[%emt 0:09:00]} Qf6 {[%emt 0:06:30]} 13. Be3 {[%emt 0:13:30]} a5 {[%emt 0:07:30]} 14. a4 {[%emt 0:08:30]} Rb8 {[%emt 0:09:30]} 15. Nh2 {[%emt 0:04:30]} Qe7 {[%emt 0:16:30]} 16. f4 {[%emt 0:13:30]} (16. Bh6 $11 {remains equal.}) 16... exf4 {[%emt 0:06:30]} (16... f5 $1 $15 17. fxe5 fxe4) 17. Nxf4 {[%emt 0:00:30]} Nf6 {[%emt 0:01:30]} ({Viel schwächer wäre} 17... Bxb2 $6 18. Rab1 Bg7 19. Nxh5 gxh5 20. Nf3 $16) 18. Rae1 {[%emt 0:05:30]} Ba6 $11 {[%emt 0:05:30]} 19. b3 {[%emt 0:01:30]} Rbd8 {[%emt 0:04:30]} 20. Qf2 {[%emt 0:01:30]} h6 {[%emt 0:05:30]} 21. Nf3 {[%emt 0:05:30]} Nd7 {[%emt 0:02:30]} 22. Ne2 {[%emt 0:03:30]} Rc8 {[%emt 0:06:30]} 23. Bf4 {[%emt 0:03:30]} f6 {[%emt 0:05:17]} 24. Bd2 {[%emt 0:03:30]} Ne5 {[%emt 0:02:31]} 25. Nh4 {[%emt 0:01:30]} Kh7 {[%emt 0:00:40]} 26. Qg3 {[%emt 0:01:30]} Qf7 {[%emt 0:02:38]} 27. Bc3 {[%emt 0:00:30]} Rc7 {[%emt 0:00:57]} 28. Rf2 {[%emt 0:01:30]} Ree7 {[%emt 0:01:59]} 29. Ref1 {[%emt 0:00:30]} Qe8 {[%emt 0:01:08]} 30. Rxf6 {[%emt 0:04:51]} Bxf6 {[%emt 0:01:07]} 31. Rxf6 {[%emt 0:00:05]} Bc8 {[%emt 0:02:29]} 32. Bxe5 {[%emt 0:01:22]} Rxe5 {[%emt 0:00:02]} 1-0

[Event "Turkish-ch Youth U16 2024"]
[Site "Belek Antalya"]
[Date "2024.01.25"]
[Round "7"]
[White "Tirpan, Ceren"]
[Black "Yildiz, Elif Zeren"]
[Result "1/2-1/2"]
[ECO "B90"]
[WhiteElo "2025"]
[BlackElo "1767"]
[Annotator "NA RC"]
[PlyCount "118"]
[EventDate "2024.01.21"]
[EventType "swiss"]
[EventCountry "TUR"]
[SourceTitle "playchess.com"]
[Source "ChessBase"]
[SourceQuality "1"]
[TimeControl "5400+30"]

1. e4 {[%emt 0:01:00]} c5 {[%emt 0:01:00]} 2. Nf3 {[%emt 0:00:30]} d6 {[%emt 0:00:30]} 3. d4 {[%emt 0:00:30]} cxd4 {[%emt 0:00:30]} 4. Nxd4 {[%emt 0:00:30]} Nf6 {[%emt 0:00:30]} 5. Nc3 {[%emt 0:00:30]} a6 {[%emt 0:00:00]} 6. a3 {[%emt 0:00:00]} e6 {[%emt 0:00:00]} 7. Be3 {[%emt 0:00:00]} Be7 {[%emt 0:01:30]} 8. Be2 {[%emt 0:00:00]} Qc7 {[%emt 0:00:00]} 9. O-O {[%emt 0:00:00]} Nbd7 {[%emt 0:04:00]} 10. f3 {[%emt 0:10:30]} Ne5 {[%emt 0:11:30]} 11. Bf2 {[%emt 0:13:30]} O-O {[%emt 0:13:30]} 12. a4 {[%emt 0:18:30]} b6 {[%emt 0:03:30]} 13. Nb3 {[%emt 0:03:30]} Ned7 {[%emt 0:10:30]} 14. Qd2 $11 {[%emt 0:10:30]} Bb7 {[%emt 0:05:30]} 15. Rfd1 {[%emt 0:07:30]} Rfd8 {[%emt 0:04:30]} 16. Qf4 {[%emt 0:05:30]} Rac8 {[%emt 0:04:30]} 17. Rd2 {[%emt 0:03:30]} Qb8 {[%emt 0:05:30]} 18. Rad1 {[%emt 0:08:01]} Qa8 {[%emt 0:04:30]} 19. g4 {[%emt 0:03:33]} h6 {[%emt 0:13:01]} 20. h4 {[%emt 0:00:30]} Nh7 {[%emt 0:01:10]} 21. Qe3 {[%emt 0:00:35]} Nc5 {[%emt 0:05:06]} 22. Nd4 {[%emt 0:01:25]} Nf8 {[%emt 0:01:06]} 23. Bf1 {[%emt 0:00:40]} Ng6 {[%emt 0:02:35]} 24. Qe1 {[%emt 0:02:59]} Bf6 {[%emt 0:00:30]} 25. Bg3 {[%emt 0:02:18]} Be5 {[%emt 0:03:00]} 26. h5 {[%emt 0:03:02]} Ne7 {[%emt 0:02:03]} 27. Nde2 {[%emt 0:01:27]} Bxg3 {[%emt 0:00:30]} 28. Qxg3 {[%emt 0:00:30]} d5 {[%emt 0:01:29]} 29. b4 {[%emt 0:00:34]} Nd7 {[%emt 0:00:30]} 30. Qd6 {[%emt 0:00:00]} Nf6 {[%emt 0:01:07]} 31. Qxb6 {[%emt 0:00:21]} Qb8 {[%emt 0:00:39]} 32. b5 {[%emt 0:01:53]} axb5 {[%emt 0:00:38]} 33. Nxb5 {[%emt 0:00:24]} Rc6 {[%emt 0:00:15]} 34. Qe3 {[%emt 0:00:40]} e5 {[%emt 0:00:30]} 35. exd5 {[%emt 0:00:30]} Nexd5 {[%emt 0:00:22]} 36. Qb3 {[%emt 0:01:05]} Rdc8 {[%emt 0:00:49]} 37. Rxd5 {[%emt 0:00:37]} Nxd5 {[%emt 0:00:30]} 38. Rxd5 {[%emt 0:00:01]} Rf6 {[%emt 0:00:23]} 39. Rd3 {[%emt 0:01:58]} e4 {[%emt 0:00:34]} 40. fxe4 {[%emt 0:00:35]} Bxe4 {[%emt 0:00:30]} 41. Rc3 {[%emt 0:00:30]} Rd8 {[%emt 0:00:30]} 42. Nbd4 {[%emt 0:00:30]} Qa7 {[%emt 0:00:07]} 43. Re3 {[%emt 0:00:00]} Rxd4 {[%emt 0:01:51]} 44. Nxd4 {[%emt 0:00:28]} Qxd4 {[%emt 0:00:30]} 45. Qc3 {[%emt 0:00:00]} Qxa4 {[%emt 0:00:00]} 46. Rxe4 {[%emt 0:01:56]} Rxf1+ {[%emt 0:00:13]} 47. Kxf1 {[%emt 0:00:30]} Qxe4 {[%emt 0:00:30]} 48. Qc8+ {[%emt 0:00:30]} Kh7 {[%emt 0:00:00]} 49. Qf5+ {[%emt 0:00:00]} Qxf5+ {[%emt 0:00:00]} 50. gxf5 {[%emt 0:00:00]} Kg8 {[%emt 0:00:00]} 51. Kf2 {[%emt 0:00:00]} Kf8 {[%emt 0:00:29]} 52. Ke3 {[%emt 0:00:00]} Ke7 {[%emt 0:00:30]} 53. Ke4 {[%emt 0:00:00]} g5 {[%emt 0:00:14]} 54. fxg6 {[%emt 0:01:44]} fxg6 {[%emt 0:00:30]} 55. hxg6 {[%emt 0:00:30]} Kf6 {[%emt 0:00:30]} 56. c4 {[%emt 0:00:30]} Kxg6 {[%emt 0:00:00]} 57. Ke5 {[%emt 0:01:15]} h5 {[%emt 0:00:00]} 58. c5 {[%emt 0:00:30]} Kf7 {[%emt 0:00:00]} 59. c6 {[%emt 0:00:00]} Ke7 {[%emt 0:00:00]} 1/2-1/2

[Event "Turkish-ch Youth U16 2024"]
[Site "Belek Antalya"]
[Date "2024.01.25"]
[Round "7"]
[White "Gungor, Cihan Akif"]
[Black "Ceyhan, Mert"]
[Result "1-0"]
[ECO "B75"]
[WhiteElo "1862"]
[BlackElo "2020"]
[Annotator "NA RC"]
[PlyCount "104"]
[EventDate "2024.01.21"]
[EventType "swiss"]
[EventCountry "TUR"]
[SourceTitle "playchess.com"]
[Source "ChessBase"]
[SourceQuality "1"]
[TimeControl "5400+30"]

1. e4 {[%emt 0:01:00]} c5 {[%emt 0:06:00]} 2. Nf3 {[%emt 0:00:30]} d6 {[%emt 0:00:30]} 3. d4 {[%emt 0:00:30]} cxd4 {[%emt 0:00:30]} 4. Nxd4 {[%emt 0:00:00]} Nf6 {[%emt 0:00:00]} 5. Nc3 {[%emt 0:00:00]} g6 {[%emt 0:00:00]} 6. Be3 {[%emt 0:00:00]} Bg7 {[%emt 0:00:30]} 7. f3 {[%emt 0:00:00]} a6 {[%emt 0:00:30]} 8. Qd2 {[%emt 0:00:30]} h5 {[%emt 0:00:00]} 9. a4 {[%emt 0:11:30]} Qc7 {[%emt 0:05:00]} 10. Be2 {[%emt 0:07:30]} Nbd7 {[%emt 0:06:30]} 11. Nb3 {[%emt 0:01:30]} Ne5 {[%emt 0:11:30]} 12. a5 {[%emt 0:05:30]} Be6 {[%emt 0:03:30]} 13. Nd4 {[%emt 0:17:30]} Bc4 {[%emt 0:05:30]} 14. f4 {[%emt 0:15:30]} (14. b3 $14 Bxe2 15. Ndxe2) 14... Neg4 {[%emt 0:02:30]} 15. Bxc4 {[%emt 0:02:30]} Qxc4 {[%emt 0:01:30]} 16. Ra4 {[%emt 0:00:30]} Qc7 $11 {[%emt 0:06:30]} 17. h3 {[%emt 0:08:30]} Nxe3 {[%emt 0:06:30]} 18. Qxe3 {[%emt 0:00:00]} e5 {[%emt 0:06:30]} 19. Nde2 {[%emt 0:02:00]} Rc8 {[%emt 0:03:30]} 20. O-O {[%emt 0:02:30]} Qc5 {[%emt 0:05:30]} 21. Qxc5 {[%emt 0:00:30]} Rxc5 {[%emt 0:00:00]} 22. Rb4 {[%emt 0:00:30]} Rxa5 {[%emt 0:04:00]} 23. Rxb7 {[%emt 0:00:00]} O-O {[%emt 0:00:30]} 24. f5 {[%emt 0:08:53]} gxf5 {[%emt 0:04:30]} 25. Rxf5 {[%emt 0:00:38]} d5 {[%emt 0:00:30]} 26. exd5 {[%emt 0:00:59]} Nxd5 {[%emt 0:00:30]} 27. Rxh5 {[%emt 0:00:00]} Nxc3 {[%emt 0:00:30]} 28. Nxc3 {[%emt 0:00:00]} f6 {[%emt 0:00:30]} 29. Rf5 {[%emt 0:00:22]} Rf7 {[%emt 0:01:30]} 30. Rb6 {[%emt 0:00:36]} Ra1+ {[%emt 0:00:30]} 31. Rf1 {[%emt 0:01:31]} Rxf1+ {[%emt 0:01:32]} 32. Kxf1 {[%emt 0:00:01]} f5 {[%emt 0:00:37]} 33. Rxa6 {[%emt 0:00:30]} Rb7 {[%emt 0:00:09]} 34. b3 {[%emt 0:01:18]} Kf7 {[%emt 0:03:01]} 35. Nd5 {[%emt 0:00:49]} e4 {[%emt 0:00:05]} 36. g4 {[%emt 0:00:43]} fxg4 {[%emt 0:00:39]} 37. hxg4 {[%emt 0:00:30]} Bd4 {[%emt 0:00:31]} 38. Ke2 {[%emt 0:00:09]} Rb5 {[%emt 0:00:07]} 39. Rd6 {[%emt 0:00:33]} Ra5 {[%emt 0:00:30]} 40. Ne3 {[%emt 0:02:39]} Bc3 {[%emt 0:02:37]} 41. Rc6 {[%emt 0:00:18]} Bf6 {[%emt 0:00:59]} 42. Rc4 {[%emt 0:02:01]} Re5 {[%emt 0:00:04]} 43. Nf5 {[%emt 0:00:06]} Kg6 {[%emt 0:01:47]} 44. Ng3 {[%emt 0:00:15]} Kg5 {[%emt 0:01:04]} 45. Rxe4 {[%emt 0:00:30]} Ra5 {[%emt 0:00:30]} 46. Nf5 {[%emt 0:00:59]} Rc5 {[%emt 0:01:03]} 47. Ne3 {[%emt 0:00:10]} Kh4 {[%emt 0:00:10]} 48. Rc4 {[%emt 0:00:59]} Re5 {[%emt 0:00:30]} 49. Kf3 {[%emt 0:00:00]} Bg5 {[%emt 0:00:12]} 50. Re4 {[%emt 0:00:28]} Ra5 {[%emt 0:00:33]} 51. Nf5+ {[%emt 0:01:35]} Kh3 {[%emt 0:00:30]} 52. Re1 {[%emt 0:00:00]} Kh2 {[%emt 0:00:00]} 1-0

[Event "Turkish-ch Youth U16 2024"]
[Site "Belek Antalya"]
[Date "2024.01.25"]
[Round "7"]
[White "Hasirci, Ozgur Deniz"]
[Black "Cakir, Mert"]
[Result "0-1"]
[ECO "B24"]
[WhiteElo "1798"]
[BlackElo "1581"]
[Annotator "NA RC COMBH"]
[PlyCount "124"]
[EventDate "2024.01.21"]
[EventType "swiss"]
[EventCountry "TUR"]
[SourceTitle "playchess.com"]
[Source "ChessBase"]
[SourceQuality "1"]
[TimeControl "5400+30"]

1. e4 {[%emt 0:01:00]} c5 {[%emt 0:01:00]} 2. Nf3 {[%emt 0:00:30]} e6 {[%emt 0:00:30]} 3. g3 {[%emt 0:00:30]} Nc6 {[%emt 0:00:30]} 4. Bg2 {[%emt 0:00:30]} Nf6 {[%emt 0:00:30]} 5. Nc3 {[%emt 0:00:00]} d5 {[%emt 0:00:00]} 6. exd5 {[%emt 0:00:00]} exd5 {[%emt 0:00:00]} 7. d4 {[%emt 0:02:30]} cxd4 {[%emt 0:00:00]} 8. Nxd4 {[%emt 0:00:30]} Bg4 {[%emt 0:00:00]} 9. Qd3 {[%emt 0:19:30]} Bc5 {[%emt 0:03:30]} 10. Nxc6 {[%emt 0:11:30]} bxc6 {[%emt 0:04:30]} 11. O-O {[%emt 0:00:00]} O-O {[%emt 0:00:30]} 12. Na4 {[%emt 0:03:00]} Be7 {[%emt 0:12:30]} 13. Be3 {[%emt 0:15:30]} Re8 {[%emt 0:08:30]} 14. Nc5 {[%emt 0:08:30]} Bxc5 {[%emt 0:05:30]} 15. Bxc5 {[%emt 0:00:30]} Be2 {[%emt 0:00:30]} 16. Qf5 {[%emt 0:15:48]} g6 {[%emt 0:14:30]} 17. Qf4 {[%emt 0:05:23]} Bxf1 {[%emt 0:00:30]} 18. Rxf1 {[%emt 0:00:00]} Ne4 {[%emt 0:00:30]} 19. Bd4 {[%emt 0:00:45]} c5 {[%emt 0:13:30]} 20. Be3 {[%emt 0:00:16]} Qf6 {[%emt 0:07:30]} 21. Qxf6 {[%emt 0:02:08]} Nxf6 {[%emt 0:00:30]} 22. Bxc5 {[%emt 0:00:01]} Rac8 {[%emt 0:03:30]} 23. Bxa7 {[%emt 0:04:25]} Rxc2 {[%emt 0:01:30]} 24. Rd1 {[%emt 0:01:20]} Ra8 {[%emt 0:01:30]} 25. Bd4 {[%emt 0:00:45]} Ne4 {[%emt 0:00:30]} 26. a3 {[%emt 0:01:51]} Rac8 {[%emt 0:02:25]} 27. Bxe4 {[%emt 0:02:31]} dxe4 {[%emt 0:00:30]} 28. Bc3 {[%emt 0:00:00]} Kf8 {[%emt 0:04:15]} 29. Rd4 {[%emt 0:01:15]} Re8 {[%emt 0:06:30]} 30. Rd2 {[%emt 0:00:44]} Rxd2 {[%emt 0:00:25]} 31. Bxd2 {[%emt 0:00:00]} Ke7 {[%emt 0:00:40]} 32. Kf1 {[%emt 0:00:29]} Kd6 {[%emt 0:00:30]} 33. Ke2 {[%emt 0:00:00]} Kd5 {[%emt 0:00:00]} 34. a4 {[%emt 0:00:00]} f5 {[%emt 0:00:33]} 35. a5 {[%emt 0:00:04]} Rb8 {[%emt 0:01:01]} 36. Bc3 {[%emt 0:00:30]} g5 {[%emt 0:00:30]} 37. Ke3 {[%emt 0:01:04]} Rf8 {[%emt 0:01:12]} 38. f4 {[%emt 0:01:45]} g4 {[%emt 0:01:15]} 39. Bd4 {[%emt 0:01:09]} Ra8 {[%emt 0:00:46]} 40. Bc3 {[%emt 0:01:18]} Kc4 {[%emt 0:00:14]} 41. Kf2 {[%emt 0:02:43]} Ra6 {[%emt 0:01:15]} 42. Ke3 {[%emt 0:00:39]} Rd6 {[%emt 0:01:02]} 43. Ke2 {[%emt 0:00:26]} Rd3 {[%emt 0:00:35]} 44. Be1 {[%emt 0:00:39]} Rd6 {[%emt 0:03:01]} 45. Bc3 {[%emt 0:00:18]} Rc6 {[%emt 0:00:42]} 46. Be1 {[%emt 0:00:39]} Rh6 {[%emt 0:00:57]} 47. Bf2 {[%emt 0:00:33]} Kb3 {[%emt 0:00:37]} 48. Bd4 {[%emt 0:00:50]} Rxh2+ {[%emt 0:00:30]} 49. Ke3 {[%emt 0:00:00]} Rh6 {[%emt 0:00:32]} 50. Bc3 {[%emt 0:00:06]} Kc4 {[%emt 0:00:11]} 51. Be1 {[%emt 0:00:24]} Rd6 {[%emt 0:00:14]} 52. Ke2 {[%emt 0:00:17]} Kb5 {[%emt 0:00:24]} 53. b4 {[%emt 0:00:30]} Rd3 {[%emt 0:00:30]} 54. Kf2 {[%emt 0:00:15]} Rf3+ {[%emt 0:00:23]} 55. Ke2 {[%emt 0:00:17]} h5 {[%emt 0:00:52]} 56. Kd1 {[%emt 0:02:03]} h4 {[%emt 0:00:30]} 57. gxh4 {[%emt 0:00:00]} g3 {[%emt 0:00:43]} 58. Ke2 {[%emt 0:00:00]} g2 {[%emt 0:00:35]} 59. Bf2 {[%emt 0:00:16]} Rxf4 {[%emt 0:00:00]} 60. Be3 {[%emt 0:00:29]} Rxh4 {[%emt 0:00:11]} 61. Kf2 {[%emt 0:00:00]} f4 {[%emt 0:00:38]} 62. Bc5 {[%emt 0:00:02]} f3 {[%emt 0:00:00]} 0-1

[Event "Turkish-ch Youth U16 2024"]
[Site "Belek Antalya"]
[Date "2024.01.25"]
[Round "7"]
[White "Surucu, Efe Mustafa"]
[Black "Topuz, Mirac Melih"]
[Result "0-1"]
[ECO "B22"]
[WhiteElo "1650"]
[BlackElo "2154"]
[Annotator "RC"]
[PlyCount "62"]
[EventDate "2024.01.21"]
[EventType "swiss"]
[EventCountry "TUR"]
[SourceTitle "playchess.com"]
[Source "ChessBase"]
[SourceQuality "1"]
[TimeControl "5400+30"]

1. e4 {[%emt 0:01:00]} c5 {[%emt 0:01:00]} 2. c3 {[%emt 0:00:00]} Nf6 {[%emt 0:01:30]} 3. e5 {[%emt 0:00:00]} Nd5 {[%emt 0:01:30]} 4. Nf3 {[%emt 0:00:30]} Nc6 {[%emt 0:00:30]} 5. d4 {[%emt 0:00:30]} cxd4 {[%emt 0:00:30]} 6. cxd4 {[%emt 0:00:00]} d6 {[%emt 0:00:00]} 7. Bc4 {[%emt 0:00:00]} Nb6 {[%emt 0:00:00]} 8. Bb3 {[%emt 0:00:00]} e6 {[%emt 0:00:30]} 9. O-O {[%emt 0:00:00]} Be7 {[%emt 0:02:30]} 10. Qe2 {[%emt 0:00:30]} O-O {[%emt 0:01:30]} 11. Nc3 {[%emt 0:00:30]} d5 {[%emt 0:18:30]} 12. Bc2 {[%emt 0:03:30]} f5 {[%emt 0:00:30]} 13. exf6 {[%emt 0:00:00]} Bxf6 {[%emt 0:00:00]} 14. a3 {[%emt 0:13:00]} Qe8 {[%emt 0:06:00]} 15. Bf4 {[%emt 0:17:30]} Qh5 {[%emt 0:04:30]} 16. Bg3 {[%emt 0:11:30]} Bd7 {[%emt 0:20:30]} 17. Nb5 {[%emt 0:06:30]} e5 {[%emt 0:01:30]} 18. dxe5 {[%emt 0:03:30]} Nxe5 {[%emt 0:01:30]} 19. Bxe5 {[%emt 0:00:30]} Rae8 {[%emt 0:04:30]} 20. Nd6 {[%emt 0:04:30]} Bxe5 {[%emt 0:02:30]} 21. Nxe8 {[%emt 0:03:30]} Bxh2+ {[%emt 0:00:30]} 22. Kh1 {[%emt 0:01:30]} Bb8+ {[%emt 0:00:30]} 23. Kg1 {[%emt 0:00:30]} Rxf3 {[%emt 0:00:30]} 24. Bxh7+ {[%emt 0:04:30]} Kxh7 {[%emt 0:01:30]} 25. Nf6+ {[%emt 0:00:30]} gxf6 {[%emt 0:00:30]} 26. Qe7+ {[%emt 0:00:00]} Kg6 {[%emt 0:00:30]} 27. g3 {[%emt 0:02:00]} Bxg3 {[%emt 0:03:30]} 28. fxg3 {[%emt 0:00:30]} Rxg3+ {[%emt 0:00:30]} 29. Kf2 {[%emt 0:00:30]} Rf3+ {[%emt 0:00:00]} 30. Ke1 {[%emt 0:00:30]} Rxf1+ {[%emt 0:01:00]} 31. Kxf1 {[%emt 0:00:30]} Qh1+ {[%emt 0:00:00]} 0-1